bitfinex/quotes_SOLUSD_20241101
["timestamp","ask_amount","ask_price","bid_price","bid_amount"]
[1730493484788,8.86463226,166.88,166.85,3.06793199]
[1730493485293,14.85673226,166.89,166.86,3.06779503]
[1730493485497,14.85673226,166.89,166.85,3.06793199]
[1730493485691,14.85673226,166.89,166.86,3.06776057]
[1730493485893,14.85673226,166.89,166.85,3.06793199]
[1730493486098,14.85673226,166.89,166.86,3.06737751]
[1730493486299,14.85673226,166.89,166.85,9.06123199]
[1730493486599,14.85673226,166.89,166.86,3.06697327]
[1730493486803,14.85673226,166.89,166.85,9.06123199]
[1730493487000,14.85673226,166.89,166.86,3.06667725]
[1730493487175,14.85673226,166.89,166.85,9.06123199]
[1730493487379,8.86463226,166.89,166.86,9.05962851]
[1730493487576,8.86463226,166.91,166.86,8.86463226]
[1730493487780,8.86463226,166.94,166.89,8.86463226]
[1730493488999,5.9905,166.93,166.89,14.85643226]
[1730493489697,14.85513226,166.93,166.88,11.92986303]
[1730493489889,8.86463226,166.92,166.88,3.06523077]
[1730493491193,5.9912,166.91,166.88,3.06523077]
[1730493491502,5.9912,166.91,166.88,3.0641011]
[1730493493296,5.9912,166.91,166.87,29.83853226]
[1730493493805,5.9912,166.91,166.88,3.06423133]
[1730493494401,5.9912,166.91,166.87,29.83853226]
[1730493495403,14.85583226,166.91,166.86,8.86463226]
[1730493495606,14.85583226,166.91,166.87,3.06669833]
[1730493496000,5.9912,166.91,166.87,11.93133059]
[1730493496211,8.86463226,166.93,166.87,8.86463226]
[1730493496512,8.86463226,166.93,166.87,14.85713226]
[1730493496694,8.86463226,166.93,166.87,17.92383059]
[1730493497411,8.86463226,166.92,166.87,17.92383059]
[1730493498199,8.86463226,166.93,166.87,17.92383059]
[1730493499200,8.86463226,166.92,166.87,17.92383059]
[1730493499492,8.86463226,166.92,166.87,9.05919833]
[1730493499703,8.86463226,166.93,166.87,32.90553059]
[1730493500007,8.86463226,166.93,166.88,8.86463226]
[1730493500304,14.85473226,166.94,166.88,8.86463226]
[1730493504008,14.85473226,166.94,166.89,8.86463226]
[1730493504217,8.86463226,166.92,166.86,14.85763226]
[1730493504519,8.86463226,166.87,166.82,14.85903226]
[1730493504700,16.132,166.92,166.83,3.06358738]
[1730493504701,8.86463226,166.88,166.83,3.06358738]
[1730493505015,8.86463226,166.88,166.84,3.06358738]
[1730493505392,8.86463226,166.88,166.83,11.92821964]
[1730493505598,14.85693226,166.88,166.83,17.92191964]
[1730493506007,14.85693226,166.88,166.84,3.06358738]
[1730493508330,8.86463226,166.89,166.84,3.06358738]
[1730493508809,8.86463226,166.9,166.85,20.9769]
[1730493508999,8.86463226,166.9,166.86,3.06573211]
[1730493509321,8.86463226,166.9,166.86,3.06555355]
[1730493509619,8.86463226,166.9,166.85,29.84153226]
[1730493509915,8.86463226,166.9,166.86,9.05855464]
[1730493510891,16.132,166.92,166.87,8.86463226]
[1730493510892,8.86463226,166.92,166.87,8.86463226]
[1730493511109,8.86463226,166.93,166.88,8.86463226]
[1730493513617,14.85403226,166.96,166.9,8.86463226]
[1730493514106,14.85403226,166.96,166.9,11.9303869]
[1730493514298,14.85403226,166.96,166.9,8.86463226]
[1730493514613,14.85403226,166.96,166.9,11.9303869]
[1730493514812,14.85403226,166.96,166.9,8.86463226]
[1730493515012,14.85403226,166.96,166.9,11.9303869]
[1730493515205,14.85403226,166.96,166.91,3.06575464]
[1730493515402,14.85403226,166.96,166.91,8.86463226]
[1730493515604,5.9894,166.96,166.91,11.93189073]
[1730493516317,5.9894,166.96,166.92,8.86463226]
[1730493517120,5.9894,166.96,166.92,5.9908]
[1730493517300,14.85403226,166.96,166.92,5.9908]
[1730493517493,14.85403226,166.96,166.91,17.92299073]
[1730493520300,14.85403226,166.96,166.91,14.85573226]
[1730493520704,14.85403226,166.96,166.91,17.92394015]
[1730493523417,8.86463226,166.99,166.93,8.86463226]
[1730493523824,8.86463226,167.0,166.94,8.86463226]
[1730493524119,8.86463226,167.0,166.91,20.9692]
[1730493524120,8.86463226,167.0,166.95,8.86463226]
[1730493525022,8.86463226,167.01,166.95,8.86463226]
[1730493525226,8.86463226,167.01,166.91,57.3796]
[1730493525227,8.86463226,167.01,166.96,8.86463226]
[1730493525614,24.66723226,167.02,166.97,5.989]
[1730493526208,24.66723226,167.02,166.97,14.85363226]
[1730493527303,8.86463226,167.01,166.96,14.9728]
[1730493527508,8.86463226,167.0,166.96,14.9728]
[1730493528518,8.86463226,167.0,166.96,20.9622]
[1730493529615,14.85233226,167.01,166.96,23.83743226]
[1730493530124,5.9874,167.02,166.98,8.86463226]
[1730493530528,14.85203226,167.02,166.96,23.83743226]
[1730493531107,14.85203226,167.02,166.96,29.82683226]
[1730493531327,8.86463226,167.01,166.96,29.82683226]
[1730493531917,14.85203226,167.02,166.96,29.82683226]
[1730493537338,5.9874,167.02,166.97,8.86463226]
[1730493539038,14.85203226,167.02,166.97,5.989]
[1730493539237,14.85203226,167.02,166.96,23.83813226]
[1730493539238,8.86463226,167.0,166.96,14.9735]
[1730493539841,8.86463226,167.0,166.96,20.9629]
[1730493541139,8.86463226,166.99,166.96,14.9735]
[1730493541309,8.86463226,167.0,166.96,14.9735]
[1730493541517,8.86463226,167.01,166.96,23.83813226]
[1730493541836,8.86463226,167.02,166.97,8.86463226]
[1730493542331,14.85213226,167.02,166.97,14.85353226]
[1730493542529,14.85213226,167.02,166.97,29.82623226]
[1730493543839,14.85213226,167.02,166.96,8.86463226]
[1730493544048,14.85213226,167.02,166.97,8.86463226]
[1730493544215,8.86463226,167.05,167.0,8.86463226]
[1730493544423,14.85093226,167.05,167.0,8.86463226]
[1730493545728,8.86463226,167.04,166.99,8.86463226]
[1730493546723,8.86463226,167.03,166.98,8.86463226]
[1730493547453,8.86463226,167.03,166.99,5.9883]
[1730493547953,14.85143226,167.04,166.99,5.9883]
[1730493549252,0.6089798,167.06,166.96,6.3439]
[1730493549253,8.86463226,167.01,166.96,29.82763226]
[1730493550738,14.85203226,167.02,166.96,29.82763226]
[1730493555230,14.85203226,167.02,166.97,8.86463226]
[1730493557853,14.85203226,167.02,166.98,5.9887]
[1730493558637,8.86463226,167.01,166.95,8.86463226]
[1730493558839,8.86463226,166.99,166.94,23.83983226]
[1730493559456,8.86463226,167.0,166.95,8.86463226]
[1730493560454,8.86463226,167.0,166.96,5.9894]
[1730493565235,8.86463226,167.0,166.96,9.05497487]
[1730493565559,8.86463226,167.0,166.96,5.9894]
[1730493565748,8.86463226,167.0,166.96,9.05514817]
[1730493566651,14.85263226,167.0,166.96,9.05514817]
[1730493566960,8.86463226,166.99,166.96,3.06574817]
[1730493567152,8.86463226,166.99,166.95,3.06574817]
[1730493567457,8.86463226,166.99,166.96,3.06574817]
[1730493567659,8.86463226,166.99,166.95,5.9898]
[1730493567955,8.86463226,166.99,166.96,3.06764587]
[1730493568158,8.86463226,166.99,166.95,5.9898]
[1730493568357,8.86463226,166.99,166.96,3.06753134]
[1730493568546,8.86463226,166.99,166.95,5.9898]
[1730493568749,8.86463226,166.99,166.96,3.06833879]
[1730493568938,8.86463226,166.99,166.95,5.9898]
[1730493569645,8.86463226,166.99,166.94,23.83983226]
[1730493569646,14.85323226,166.99,166.96,3.07045701]
[1730493569855,8.86463226,166.98,166.96,3.07045701]
[1730493570244,8.86463226,166.98,166.94,20.9653]
[1730493570760,14.85333226,166.98,166.95,3.0707868]
[1730493570958,14.85333226,166.98,166.94,20.9653]
[1730493571162,14.85333226,166.98,166.95,3.07069162]
[1730493571339,14.85333226,166.98,166.94,20.9653]
[1730493571539,14.85333226,166.98,166.95,3.07046178]
[1730493571754,14.85333226,166.98,166.94,20.9653]
[1730493571939,14.85333226,166.98,166.95,3.07046178]
[1730493572140,14.85263226,167.0,166.94,29.82993226]
[1730493572363,14.85263226,167.0,166.95,3.07046299]
[1730493572667,8.86463226,166.99,166.94,29.82993226]
[1730493572969,5.988,167.0,166.94,20.9653]
[1730493572970,8.86463226,166.98,166.94,20.9653]
[1730493573344,8.86463226,166.98,166.95,3.07077024]
[1730493573537,8.86463226,166.98,166.94,20.9653]
[1730493573739,8.86463226,166.98,166.95,3.07064938]
[1730493573935,14.85323226,166.99,166.94,20.9653]
[1730493574138,14.85323226,166.99,166.95,3.07099964]
[1730493574357,14.85323226,166.99,166.94,20.9653]
[1730493577066,14.85323226,166.99,166.95,3.07078653]
[1730493577246,14.85323226,166.99,166.94,20.9653]
[1730493577448,14.85263226,167.0,166.95,11.93523508]
[1730493577652,14.85263226,167.0,166.95,8.86463226]
[1730493578055,5.988,167.0,166.95,8.86463226]
[1730493578568,24.92593226,167.01,166.95,8.86463226]
[1730493578762,30.91363226,167.01,166.96,5.9894]
[1730493583547,14.85263226,167.0,166.96,5.9894]
[1730493584965,8.86463226,167.02,166.97,8.86463226]
[1730493585270,14.85083226,167.05,166.99,8.86463226]
[1730493585761,8.86463226,167.04,166.99,8.86463226]
[1730493585966,8.86463226,167.03,166.98,8.86463226]
[1730493586361,8.86463226,167.05,167.0,8.86463226]
[1730493586550,30.91351206,167.06,167.0,8.86463226]
[1730493587659,30.91351206,167.06,167.0,14.85233226]
[1730493588768,14.85093226,167.05,167.0,14.85233226]
[1730493589970,14.85093226,167.05,167.0,5.9877]
[1730493600874,8.86463226,167.01,166.95,20.9639]
[1730493601080,8.86463226,167.0,166.96,3.06935159]
[1730493601683,8.86463226,166.99,166.95,20.9639]
[1730493601863,14.85313226,166.99,166.95,20.9639]
[1730493602481,5.988,167.0,166.95,29.82853226]
[1730493602780,14.85263226,167.0,166.95,29.82853226]
[1730493603856,14.85263226,167.0,166.95,20.9639]
[1730493604959,8.86463226,166.99,166.95,20.9639]
[1730493606169,8.86463226,167.02,166.97,8.86463226]
[1730493606376,8.86463226,167.03,166.97,8.86463226]
[1730493607181,8.86463226,167.03,166.98,8.86463226]
[1730493607366,5.9873,167.02,166.97,14.85333226]
[1730493607678,8.86463226,167.01,166.96,5.9893]
[1730493607875,8.86463226,166.99,166.95,14.9741]
[1730493608068,5.9873,167.02,166.95,14.9741]
[1730493608069,8.86463226,166.98,166.95,14.9741]
[1730493610079,14.85323226,166.99,166.95,14.9741]
[1730493612485,5.9886,166.99,166.95,14.9741]
[1730493614567,8.86463226,167.0,166.95,23.83873226]
[1730493614779,14.85263226,167.0,166.95,29.82853226]
[1730493615482,8.86463226,167.0,166.95,29.82853226]
[1730493615884,8.86463226,167.02,166.96,8.86463226]
[1730493616181,8.86463226,167.03,166.97,8.86463226]
[1730493617788,8.86463226,167.03,166.97,14.85333226]
[1730493619087,8.86463226,167.03,166.98,8.86463226]
[1730493619769,8.86463226,167.02,166.97,29.82603226]
[1730493621972,8.86463226,167.03,166.97,29.82603226]
[1730493623085,8.86463226,167.02,166.97,29.82603226]
[1730493623291,8.86463226,167.02,166.97,20.9614]
[1730493629577,14.85173226,167.03,166.97,23.83733226]
[1730493634199,14.85173226,167.03,166.97,29.82633226]
[1730493634602,14.85173226,167.03,166.98,3.0743391]
[1730493634982,14.85173226,167.03,166.98,3.07398704]
[1730493636674,14.85173226,167.03,166.98,9.06322407]
[1730493637301,14.85173226,167.03,166.98,5.9885]
[1730493639900,8.86463226,167.02,166.98,5.9885]
[1730493642211,8.86463226,167.03,166.98,8.86463226]
[1730493643911,8.86463226,167.04,166.98,8.86463226]
[1730493644201,8.86463226,167.04,166.99,3.07613025]
[1730493644410,8.86463226,167.04,166.98,8.86463226]
[1730493644586,8.86463226,167.04,166.99,3.07631598]
[1730493644786,8.86463226,167.04,166.98,8.86463226]
[1730493644985,8.86463226,167.04,166.99,3.07607447]
[1730493645200,14.85143226,167.04,166.99,5.9882]
[1730493645908,5.9868,167.04,167.0,3.07606671]
[1730493646204,5.9868,167.04,166.99,14.85283226]
[1730493646411,14.85093226,167.05,167.0,8.86463226]
[1730493646699,5.9863,167.05,167.0,8.86463226]
[1730493646903,5.9863,167.05,167.0,11.94095107]
[1730493647107,5.9863,167.05,167.0,15.01706947]
[1730493647315,30.91351206,167.06,167.01,8.86463226]
[1730493647604,0.6089798,167.06,167.03,8.86463226]
[1730493647897,0.6089798,167.06,167.04,8.86463226]
[1730493648508,0.6089798,167.06,167.05,8.86463226]
[1730493649492,0.6089798,167.06,167.05,14.85083226]
[1730493649814,0.6089798,167.06,167.05,5.9862]
[1730493653590,0.6089798,167.06,167.05,14.85083226]
[1730493655612,0.6089798,167.06,167.05,5.9862]
[1730493657004,0.6089798,167.06,167.05,14.85083226]
[1730493657906,0.6089798,167.06,167.04,14.966]
[1730493657907,0.6089798,167.06,167.04,23.83063226]
[1730493659692,0.6089798,167.06,167.04,29.81713226]
[1730493661725,0.6089798,167.06,167.04,14.966]
[1730493662617,0.6089798,167.06,167.05,28.86463226]
[1730493663118,0.6089798,167.06,167.05,31.9250256]
[1730493663306,0.6089798,167.06,167.05,28.86463226]
[1730493663508,0.6089798,167.06,167.05,31.92592703]
[1730493664009,0.6089798,167.06,167.05,37.91212703]
[1730493664514,0.6089798,167.06,167.05,34.85083226]
[1730493666204,0.6089798,167.06,167.05,58.62771626]
[1730493666606,0.6089798,167.06,167.05,34.85083226]
[1730493671340,0.6089798,167.06,167.05,58.62771626]
[1730493679640,0.6089798,167.06,167.05,58.75320626]
[1730493684938,0.6089798,167.06,167.05,58.62771626]
[1730493687341,0.6089798,167.06,167.05,61.678425]
[1730493688336,0.6089798,167.06,167.05,58.62771626]
[1730493688868,0.6089798,167.06,167.05,61.67824622]
[1730493690360,0.6089798,167.06,167.05,37.90136222]
[1730493692056,0.6089798,167.06,167.05,37.90684053]
[1730493693460,0.6089798,167.06,167.05,61.68372453]
[1730493699333,0.6089798,167.06,167.05,58.62771626]
[1730493699654,0.6089798,167.06,167.05,34.85083226]
[1730493699861,0.6089798,167.06,167.05,37.91181362]
[1730493702052,0.6089798,167.06,167.05,61.68869762]
[1730493702541,0.6089798,167.06,167.05,58.62771626]
[1730493702942,0.6089798,167.06,167.05,61.69003594]
[1730493704459,0.6089798,167.06,167.05,37.91315194]
[1730493706769,0.6089798,167.06,167.05,34.85083226]
[1730493706972,0.6089798,167.06,167.05,37.91521734]
[1730493709969,0.6089798,167.06,167.05,61.69210134]
[1730493710268,0.6089798,167.06,167.05,61.69375862]
[1730493711675,16.0773,167.14,167.06,0.12549]
[1730493711864,16.0773,167.14,167.13,8.86463226]
[1730493712056,16.0773,167.14,167.13,11.93067462]
[1730493714174,16.0773,167.14,167.13,17.91397462]
[1730493714565,8.86463226,167.2,167.13,32.87237462]
[1730493714566,21.7177,167.2,167.13,32.87237462]
[1730493714765,21.7177,167.2,167.18,8.86463226]
[1730493714966,21.7177,167.2,167.19,8.86463226]
[1730493715860,21.7177,167.2,167.14,20.0]
[1730493715861,21.7177,167.2,167.18,8.86463226]
[1730493716276,21.7177,167.2,167.19,8.86463226]
[1730493716465,15.45,167.2,167.19,8.86463226]
[1730493720563,0.6089798,167.22,167.19,50.3041613]
[1730493720769,0.6089798,167.22,167.21,8.86463226]
[1730493723781,0.6089798,167.22,167.21,14.84513226]
[1730493724777,6.5890798,167.22,167.21,8.86463226]
[1730493724978,0.6089798,167.22,167.21,8.86463226]
[1730493727881,21.7395798,167.22,167.21,8.86463226]
[1730493728088,21.7395798,167.22,167.2,8.86463226]
[1730493730380,21.7395798,167.22,167.19,8.86463226]
[1730493730574,21.7395798,167.22,167.18,8.86463226]
[1730493731770,30.60421206,167.22,167.17,8.86463226]
[1730493732170,21.7395798,167.22,167.17,8.86463226]
[1730493733685,30.60421206,167.22,167.17,8.86463226]
[1730493735692,21.7395798,167.22,167.17,8.86463226]
[1730493735879,30.60421206,167.22,167.17,8.86463226]
[1730493736070,8.86463226,167.21,167.16,8.86463226]
[1730493736271,8.86463226,167.19,167.14,8.86463226]
[1730493736481,16.4507,167.18,167.14,8.86463226]
[1730493736676,25.31533226,167.18,167.13,8.86463226]
[1730493737289,31.73403226,167.18,167.13,8.86463226]
[1730493738072,5.9819,167.17,167.13,8.86463226]
[1730493738890,5.9819,167.17,167.14,8.86463226]
[1730493740882,5.9819,167.17,167.15,8.86463226]
[1730493741088,16.4507,167.18,167.16,8.86463226]
[1730493741293,16.4507,167.18,167.17,8.86463226]
[1730493741488,5.9809,167.2,167.17,8.86463226]
[1730493741678,5.9809,167.2,167.18,8.86463226]
[1730493742298,5.9809,167.2,167.17,8.86463226]
[1730493742602,5.9805,167.21,167.17,8.86463226]
[1730493747008,5.9805,167.21,167.16,8.86463226]
[1730493749399,14.84513226,167.21,167.15,8.86463226]
[1730493749797,14.84513226,167.21,167.14,5.9829]
[1730493749798,14.84513226,167.21,167.16,8.86463226]
[1730493751393,5.9805,167.21,167.18,8.86463226]
[1730493751695,5.9805,167.21,167.17,8.86463226]
[1730493754389,5.9805,167.21,167.16,8.86463226]
[1730493754784,14.84513226,167.21,167.15,23.82123226]
[1730493756301,8.86463226,167.2,167.15,8.86463226]
[1730493756610,8.86463226,167.19,167.14,8.86463226]
[1730493756901,8.86463226,167.19,167.13,21.08256322]
[1730493757200,8.86463226,167.2,167.14,8.86463226]
[1730493757384,8.86463226,167.2,167.15,8.86463226]
[1730493758407,5.9812,167.19,167.15,8.86463226]
[1730493759788,5.9812,167.19,167.16,8.86463226]
[1730493761196,5.9808,167.2,167.16,8.86463226]
[1730493762100,5.9808,167.2,167.15,8.86463226]
[1730493767109,14.84543226,167.2,167.14,8.86463226]
[1730493768203,5.9808,167.2,167.15,8.86463226]
[1730493768816,14.84543226,167.2,167.14,14.84753226]
[1730493768992,14.84543226,167.2,167.14,8.86463226]
[1730493769191,14.84543226,167.2,167.13,15.09936322]
[1730493769192,32.64151626,167.19,167.13,15.09936322]
[1730493769399,32.64151626,167.19,167.13,8.86463226]
[1730493770410,29.79753226,167.2,167.15,8.86463226]
[1730493770721,5.9808,167.2,167.15,8.86463226]
[1730493772416,14.84543226,167.2,167.15,8.86463226]
[1730493773527,14.84543226,167.2,167.14,8.86463226]
[1730493774104,14.84543226,167.2,167.14,11.9261417]
[1730493774425,14.84543226,167.2,167.14,8.86463226]
[1730493776607,8.86463226,167.19,167.13,14.84763226]
[1730493777705,5.9815,167.18,167.14,3.06418031]
[1730493778025,5.9815,167.18,167.13,14.84763226]
[1730493778220,5.9815,167.18,167.14,3.06325798]
[1730493778424,5.9815,167.18,167.13,14.84763226]
[1730493778626,5.9815,167.18,167.14,3.06300997]
[1730493778824,5.9815,167.18,167.13,14.84763226]
[1730493779005,5.9815,167.18,167.14,3.06284806]
[1730493779208,5.9815,167.18,167.13,14.84763226]
[1730493779422,5.9815,167.18,167.14,11.92750595]
[1730493779731,5.9815,167.18,167.14,8.86463226]
[1730493780621,14.84513226,167.21,167.15,8.86463226]
[1730493785541,8.86463226,167.17,167.11,15.09635878]
[1730493785719,8.86463226,167.16,167.12,3.06339367]
[1730493786041,8.86463226,167.17,167.11,8.86463226]
[1730493786216,8.86463226,167.17,167.13,3.06346695]
[1730493786534,8.86463226,167.17,167.12,3.06346695]
[1730493786741,8.86463226,167.17,167.13,3.06353135]
[1730493786930,8.86463226,167.16,167.11,8.86463226]
[1730493787624,5.9826,167.16,167.11,14.84853226]
[1730493788227,5.9826,167.16,167.12,11.92835047]
[1730493788430,5.9826,167.16,167.13,3.06371821]
[1730493788635,5.9826,167.16,167.12,8.86463226]
[1730493789142,5.9826,167.16,167.13,3.06351986]
[1730493789328,5.9826,167.16,167.12,8.86463226]
[1730493789535,5.9826,167.16,167.13,3.06335047]
[1730493789728,5.9826,167.16,167.12,8.86463226]
[1730493789929,5.9826,167.16,167.13,3.06334767]
[1730493790128,5.9826,167.16,167.12,8.86463226]
[1730493791540,14.84723226,167.16,167.1,8.86463226]
[1730493791744,8.86463226,167.15,167.11,3.06333556]
[1730493791941,8.86463226,167.15,167.1,8.86463226]
[1730493792149,8.86463226,167.15,167.11,3.06351233]
[1730493792438,8.86463226,167.15,167.1,8.86463226]
[1730493792635,5.983,167.14,167.11,3.06307671]
[1730493792839,5.983,167.14,167.1,8.86463226]
[1730493793144,5.983,167.14,167.08,6.23293465]
[1730493793145,8.86463226,167.13,167.08,15.09756691]
[1730493793441,8.86463226,167.13,167.11,3.06302784]
[1730493793821,8.86463226,167.13,167.08,21.08266691]
[1730493794022,14.84763226,167.14,167.09,3.06293681]
[1730493794223,14.84763226,167.14,167.09,8.86463226]
[1730493794443,5.983,167.14,167.09,8.86463226]
[1730493795222,5.983,167.14,167.1,8.86463226]
[1730493796632,5.983,167.14,167.1,14.84903226]
[1730493797851,5.9826,167.15,167.1,14.84903226]
[1730493800434,14.84723226,167.15,167.09,14.84933226]
[1730493801349,8.86463226,167.13,167.08,30.05986691]
[1730493801546,32.64151626,167.14,167.08,30.05986691]
[1730493801849,32.64151626,167.14,167.08,36.04496691]
[1730493802955,5.983,167.14,167.1,8.86463226]
[1730493803338,5.983,167.14,167.11,8.86463226]
[1730493805454,8.86463226,167.16,167.1,8.86463226]
[1730493805758,5.9826,167.15,167.1,8.86463226]
[1730493809555,14.84723226,167.15,167.09,14.84933226]
[1730493812453,23.776884,167.14,167.08,36.04496691]
[1730493812660,32.64151626,167.14,167.08,29.81203226]
[1730493814150,5.9833,167.13,167.08,29.81203226]
[1730493817362,5.9833,167.13,167.08,23.82693226]
[1730493817541,14.84793226,167.13,167.08,23.82693226]
[1730493818563,5.9833,167.13,167.09,8.86463226]
[1730493819864,5.9833,167.13,167.1,8.86463226]
[1730493822066,5.9833,167.13,167.09,8.86463226]
[1730493829851,5.9833,167.13,167.09,14.84933226]
[1730493830164,14.84683226,167.16,167.1,8.86463226]
[1730493832176,14.84683226,167.16,167.1,14.84893226]
[1730493833176,5.9833,167.13,167.09,23.82653226]
[1730493833770,5.9833,167.13,167.09,29.81123226]
[1730493835083,5.9833,167.13,167.09,23.82653226]
[1730493838180,5.9833,167.13,167.1,3.0657652]
[1730493838363,5.9833,167.13,167.09,23.82653226]
[1730493838563,5.9833,167.13,167.1,3.06582167]
[1730493838781,5.9833,167.13,167.09,23.82653226]
[1730493839078,5.9833,167.13,167.1,3.06586551]
[1730493839272,5.9833,167.13,167.09,23.82653226]
[1730493839486,5.9833,167.13,167.1,3.06644394]
[1730493839777,5.9833,167.13,167.09,23.82653226]
[1730493839969,5.9833,167.13,167.1,3.06644394]
[1730493840166,5.9822,167.16,167.11,8.86463226]
[1730493840960,14.84683226,167.16,167.11,8.86463226]
[1730493843379,8.86463226,167.14,167.09,23.82653226]
[1730493843678,8.86463226,167.14,167.1,3.06525372]
[1730493843858,8.86463226,167.14,167.09,23.82653226]
[1730493844067,8.86463226,167.14,167.1,3.06549033]
[1730493844260,8.86463226,167.14,167.09,23.82653226]
[1730493844568,5.9833,167.13,167.1,3.06524459]
[1730493844773,5.9833,167.13,167.09,23.82653226]
[1730493844980,5.9833,167.13,167.1,3.06516087]
[1730493845162,5.9833,167.13,167.09,23.82653226]
[1730493845363,5.9833,167.13,167.1,3.06523798]
[1730493845561,14.84793226,167.13,167.07,8.86463226]
[1730493845772,14.84793226,167.13,167.08,3.06515127]
[1730493845970,14.84793226,167.13,167.09,3.06515127]
[1730493846259,5.9833,167.13,167.08,8.86463226]
[1730493846665,5.9833,167.13,167.09,8.86463226]
[1730493846863,23.776884,167.15,167.1,11.93030143]
[1730493847079,5.9828,167.15,167.11,8.86463226]
[1730493847378,22.5266,167.18,167.14,8.86463226]
[1730493847683,31.39123226,167.18,167.12,8.86463226]
[1730493848579,31.39123226,167.18,167.13,8.86463226]
[1730493848781,31.39123226,167.18,167.12,8.86463226]
[1730493857782,31.39123226,167.18,167.13,8.86463226]
[1730493861176,22.5266,167.18,167.14,8.86463226]
[1730493861379,29.757684,167.2,167.16,8.86463226]
[1730493862583,5.9808,167.2,167.16,8.86463226]
[1730493862786,5.9808,167.2,167.12,35.45852904]
[1730493862787,5.9808,167.2,167.18,8.86463226]
[1730493863695,15.7512798,167.22,167.18,8.86463226]
[1730493863899,5.9805,167.21,167.18,8.86463226]
[1730493864278,5.9805,167.21,167.17,8.86463226]
[1730493866498,8.86463226,167.2,167.14,8.86463226]
[1730493867091,14.84513226,167.21,167.15,8.86463226]
[1730493867401,5.9805,167.21,167.18,8.86463226]
[1730493868195,5.9805,167.21,167.17,8.86463226]
[1730493869699,5.9805,167.21,167.18,8.86463226]
[1730493870383,5.9805,167.21,167.13,20.9417]
[1730493870602,5.9805,167.21,167.17,8.86463226]
[1730493872494,5.9805,167.21,167.16,8.86463226]
[1730493874724,8.86463226,167.18,167.12,8.86463226]
[1730493875703,5.9819,167.17,167.12,8.86463226]
[1730493878606,5.9819,167.17,167.13,8.86463226]
[1730493880307,14.84653226,167.17,167.11,8.86463226]
[1730493881206,8.86463226,167.16,167.11,8.86463226]
[1730493881410,8.86463226,167.13,167.1,6.23192345]
[1730493881606,8.86463226,167.13,167.09,3.0606233]
[1730493881809,23.776884,167.16,167.11,8.86463226]
[1730493882312,46.32503226,167.17,167.11,8.86463226]
[1730493882498,8.86463226,167.16,167.11,8.86463226]
[1730493882705,8.86463226,167.15,167.1,11.92525556]
[1730493882906,8.86463226,167.15,167.1,8.86463226]
[1730493883587,14.84763226,167.15,167.1,8.86463226]
[1730493883787,8.86463226,167.13,167.08,15.09892963]
[1730493883993,8.86463226,167.11,167.08,6.23429737]
[1730493884188,8.86463226,167.09,167.04,11.92808469]
[1730493884392,8.86463226,167.07,167.03,6.0349]
[1730493884614,8.86463226,167.06,167.02,6.23657173]
[1730493884817,8.86463226,167.04,167.0,3.0650967]
[1730493884992,8.86463226,167.03,167.0,3.0650967]
[1730493885198,8.86463226,167.03,166.98,8.86463226]
[1730493885604,5.9873,167.02,166.98,8.86463226]
[1730493886318,5.9873,167.02,166.98,11.92813195]
[1730493886611,5.9873,167.02,166.97,18.16536891]
[1730493886795,14.85193226,167.02,166.97,18.16536891]
[1730493887306,14.85193226,167.02,166.97,15.10186922]
[1730493887499,14.85193226,167.02,166.97,6.23723696]
[1730493888299,14.85193226,167.02,166.96,29.82743226]
[1730493889112,14.85193226,167.02,166.97,8.86463226]
[1730493889417,5.9873,167.02,166.98,8.86463226]
[1730493889627,14.85193226,167.02,166.97,14.85363226]
[1730493890120,14.85193226,167.02,166.97,5.989]
[1730493890813,8.86463226,167.01,166.97,5.989]
[1730493891002,8.86463226,167.0,166.96,20.9628]
[1730493891419,8.86463226,167.01,166.96,29.82743226]
[1730493893094,8.86463226,166.99,166.95,6.23933162]
[1730493893301,8.86463226,166.97,166.95,6.23933162]
[1730493893713,8.86463226,166.96,166.93,14.976]
[1730493893912,8.86463226,166.95,166.91,12.23216678]
[1730493894110,8.86463226,166.94,166.91,12.23216678]
[1730493894422,8.86463226,166.96,166.91,21.09679904]
[1730493895820,8.86463226,166.95,166.91,6.24116678]
[1730493896005,8.86463226,166.94,166.89,27.3821]
[1730493896318,8.86463226,166.9,166.89,14.9791]
[1730493896527,8.86463226,166.9,166.88,6.24403333]
[1730493896823,8.86463226,166.89,166.88,6.24403333]
[1730493898502,8.86463226,166.89,166.85,27.1938]
[1730493898813,8.86463226,166.86,166.85,33.43761605]
[1730493899015,8.86463226,166.86,166.85,6.24381605]
[1730493899218,8.86463226,166.86,166.81,6.2179]
[1730493899219,8.86463226,166.86,166.81,14.9863]
[1730493899402,8.86463226,166.82,166.81,14.9863]
[1730493900222,8.86463226,166.82,166.8,6.24530643]
[1730493900424,44.3231613,166.81,166.8,6.24530643]